{"text_format":"1","workbook":"xlsx","n_sheets":3,"sheets":["Instructions","Entry Sheeet","Print Certificates"],"not_rendered":{"charts":0,"images":0,"macros":1,"external_links":1,"defined_names":3,"comments":0,"pivot_tables":0},"unopened":[],"bounds":{"document_bytes":16777216,"sheet_cells":100000,"rows_first":2000,"rows_last":500,"rows_between":2000,"halvings":0,"cell_chars":16384,"cell_head_chars":4096},"cells_cut":0,"cells_raw":0,"read":"whole","date_system":"1900"}

{"sheet":"Instructions","index":0,"n_rows":12,"n_cols":4,"rows_kept":12,"cut":false,"hidden":false,"merged":[[8,1,8,3],[7,1,7,3],[0,0,0,3],[3,1,3,2],[4,1,4,3],[5,1,5,3],[6,1,6,3],[1,0,1,3]]}
["Instructions"]
["Kindly read All Instructions before Use Character Certificate Utitly"]
[]
[1,"First Fill  Necessary Data for Certificate in Entry Sheet or  by click on ",null,"Fill Data"]
[2,"In All Sheet Use only or Click on  Yellow coloured Filled  Cell to Enter or Select Data. Rest Cell Are Locked"]
[3,"you can copy Paste Students Data Like Name ,Father Name, Class Etc.  From Epunjab Student Report. Or Enter Manually. Also Type Name in Punjabi Anmollipi Font"]
[4,"After Entered All data in yellow cell of  Entry  Sheet . Goto Report Certificate Sheet to View/Print report card of each Students"]
[5,"Please use Office 2010 and Above to find Better Results"]
[6,"Suggestion and Feedback Can be Send on Email Id-abhi072011@gmail.com"]
[7,"Please Visit My Website for More Tools and Utilities WWW."]
[null,"Subscribe Our Youtube Channel for Details Video"]
[null,"Follow Us On Facebook"]

{"sheet":"Entry Sheeet","index":1,"n_rows":466,"n_cols":19,"rows_kept":466,"cut":false,"hidden":false,"merged":[[4,0,4,1],[2,5,2,7],[3,5,3,7],[4,5,4,7],[1,0,1,10],[2,0,2,1],[3,0,3,1],[2,2,2,4],[3,2,3,4]]}
[]
["Auto Character Certificate Generate Utility. Please Fill In Only Yellow Cells In This Sheet And Click on Print CC to Print Certificate"]
["Enter School Name",null,"Govt. High School Khanna",null,null,"Block Name",null,null,"Khanna-2","District Name","Ludhiana"]
["pMjwbI iv`c skUl dw nwm ilKo",null,"srkwrI hweI skUl KMnw",null,null,"blwk dw nwm (pMjwbI)",null,null,"KMnw-2","ijlHw dw nwm","luiDAwxw"]
["Select Class",null,"Matric","Select Year",2023,"Select Total Marks",null,null,650,{"$f":"IF(C5=\"Middle\",\"A`TvIN\",IF(C5=\"Matric\",\"dsvIN\",IF(C5=\"Sr. Sec.\",\"bwrHvI\",\"bwrHvI\")))","v":"dsvIN"},null,null,null,null,null,null,"Middle",2022,650]
[null,null,null,null,null,null,null,null,null,null,null,null,null,null,null,null,"Matric",2023,450]
["Sr. no","Name","Father Name","Roll No.","No. of Year in School","Obtained Marks","%","Division","nwm","ipqw dw nwm","drjw",null,null,null,null,null,"Sr. Sec.",2024,600]
[1,"Ram 1","Sham Singh 1",102015102,5,250,{"$f":"(F8/$I$5)*100","v":38.461538461538467},{"$f":"IF(G8>=60,\"First\",IF(G8>=45,\"Second\",IF(G8>=33,\"Third\",\" \")))","v":"Third"},"rwm 1","swm isMG 1",{"$f":"IF(H8=\"First\",\"pihlw\",IF(H8=\"Second\",\"dUjy\",IF(H8=\"Third\",\"qIjy\",\"\")))","v":"qIjy"},null,null,null,null,null,"Senior Secondary",2025,500]
[2,"Ram 2","Sham Singh 2",102015103,5,300,{"$f":"(F9/$I$5)*100","v":46.153846153846153},{"$f":"IF(G9>=60,\"First\",IF(G9>=45,\"Second\",IF(G9>=33,\"Third\",\" \")))","v":"Second"},"rwm 2","swm isMG 2",{"$f":"IF(H9=\"First\",\"pihlw\",IF(H9=\"Second\",\"dUjy\",IF(H9=\"Third\",\"qIjy\",\"\")))","v":"dUjy"},null,null,null,null,null,null,2026,550]
[3,"Ram 3","Sham Singh 3",102015104,3,550,84.615384615384613,"First","rwm 3","swm isMG 3","pihlw",null,null,null,null,null,null,2027,400]
[4,"Ram 4","Sham Singh 4",102015105,4,250,38.461538461538467,"Third","rwm 4","swm isMG 4","qIjy",null,null,null,null,null,null,2028,700]
[5,"Ram 4",null,null,null,null,{"$f":"(F12/$I$5)*100","v":0}," ",null,null,"",null,null,null,null,null,null,2029,800]
[6,null,null,null,null,null,0,{"$f":"IF(G13>=60,\"First\",IF(G13>=45,\"Second\",IF(G13>=33,\"Third\",\" \")))","v":" "},null,null,"",null,null,null,null,null,null,2030,350]
[7,null,null,null,null,null,0," ",null,null,"",null,null,null,null,null,null,2031]
[8,null,null,null,null,null,0," ",null,null,{"$f":"IF(H15=\"First\",\"pihlw\",IF(H15=\"Second\",\"dUjy\",IF(H15=\"Third\",\"qIjy\",\"\")))","v":""},null,null,null,null,null,null,2032]
[9,null,null,null,null,null,0," ",null,null,""]
[10,null,null,null,null,null,0," ",null,null,""]
[11,null,null,null,null,null,0," ",null,null,""]
[12,null,null,null,null,null,0," ",null,null,""]
[13,null,null,null,null,null,0," ",null,null,""]
[14,null,null,null,null,null,0," ",null,null,""]
[15,null,null,null,null,null,0," ",null,null,""]
[16,null,null,null,null,null,0," ",null,null,""]
[17,null,null,null,null,null,0," ",null,null,""]
[18,null,null,null,null,null,0," ",null,null,""]
[19,null,null,null,null,null,0," ",null,null,""]
[20,null,null,null,null,null,0," ",null,null,""]
[21,null,null,null,null,null,0," ",null,null,""]
[22,null,null,null,null,null,0," ",null,null,""]
[23,null,null,null,null,null,0," ",null,null,""]
[24,null,null,null,null,null,0," ",null,null,""]
[25,null,null,null,null,null,0," ",null,null,""]
[26,null,null,null,null,null,0," ",null,null,""]
[27,null,null,null,null,null,0," ",null,null,""]
[28,null,null,null,null,null,0," ",null,null,""]
[29,null,null,null,null,null,0," ",null,null,""]
[30,null,null,null,null,null,0," ",null,null,""]
[31,null,null,null,null,null,0," ",null,null,""]
[32,null,null,null,null,null,0," ",null,null,""]
[33,null,null,null,null,null,0," ",null,null,""]
[34,null,null,null,null,null,0," ",null,null,""]
[35,null,null,null,null,null,0," ",null,null,""]
[36,null,null,null,null,null,0," ",null,null,""]
[37,null,null,null,null,null,0," ",null,null,""]
[38,null,null,null,null,null,0," ",null,null,""]
[39,null,null,null,null,null,0," ",null,null,""]
[40,null,null,null,null,null,0," ",null,null,""]
[41,null,null,null,null,null,0," ",null,null,""]
[42,null,null,null,null,null,0," ",null,null,""]
[43,null,null,null,null,null,0," ",null,null,""]
[44,null,null,null,null,null,0," ",null,null,""]
[45,null,null,null,null,null,0," ",null,null,""]
[46,null,null,null,null,null,0," ",null,null,""]
[47,null,null,null,null,null,0," ",null,null,""]
[48,null,null,null,null,null,0," ",null,null,""]
[49,null,null,null,null,null,0," ",null,null,""]
[50,null,null,null,null,null,0," ",null,null,""]
[51,null,null,null,null,null,0," ",null,null,""]
[52,null,null,null,null,null,0," ",null,null,""]
[53,null,null,null,null,null,0," ",null,null,""]
[54,null,null,null,null,null,0," ",null,null,""]
[55,null,null,null,null,null,0," ",null,null,""]
[56,null,null,null,null,null,0," ",null,null,""]
[57,null,null,null,null,null,0," ",null,null,""]
[58,null,null,null,null,null,0," ",null,null,""]
[59,null,null,null,null,null,0," ",null,null,""]
[60,null,null,null,null,null,0," ",null,null,""]
[61,null,null,null,null,null,0," ",null,null,""]
[62,null,null,null,null,null,0," ",null,null,""]
[63,null,null,null,null,null,0," ",null,null,""]
[64,null,null,null,null,null,0," ",null,null,""]
[65,null,null,null,null,null,0," ",null,null,""]
[66,null,null,null,null,null,{"$f":"(F73/$I$5)*100","v":0},{"$f":"IF(G73>=60,\"First\",IF(G73>=45,\"Second\",IF(G73>=33,\"Third\",\" \")))","v":" "},null,null,{"$f":"IF(H73=\"First\",\"pihlw\",IF(H73=\"Second\",\"dUjy\",IF(H73=\"Third\",\"qIjy\",\"\")))","v":""}]
[67,null,null,null,null,null,0," ",null,null,""]
[68,null,null,null,null,null,0," ",null,null,""]
[69,null,null,null,null,null,0," ",null,null,""]
[70,null,null,null,null,null,0," ",null,null,""]
[71,null,null,null,null,null,0," ",null,null,""]
[72,null,null,null,null,null,0," ",null,null,""]
[73,null,null,null,null,null,0," ",null,null,""]
[74,null,null,null,null,null,0," ",null,null,""]
[75,null,null,null,null,null,0," ",null,null,""]
[76,null,null,null,null,null,0," ",null,null,""]
[77,null,null,null,null,null,0," ",null,null,""]
[78,null,null,null,null,null,0," ",null,null,""]
[79,null,null,null,null,null,0," ",null,null,""]
[80,null,null,null,null,null,0," ",null,null,""]
[81,null,null,null,null,null,0," ",null,null,""]
[82,null,null,null,null,null,0," ",null,null,""]
[83,null,null,null,null,null,0," ",null,null,""]
[84,null,null,null,null,null,0," ",null,null,""]
[85,null,null,null,null,null,0," ",null,null,""]
[86,null,null,null,null,null,0," ",null,null,""]
[87,null,null,null,null,null,0," ",null,null,""]
[88,null,null,null,null,null,0," ",null,null,""]
[89,null,null,null,null,null,0," ",null,null,""]
[90,null,null,null,null,null,0," ",null,null,""]
[91,null,null,null,null,null,0," ",null,null,""]
[92,null,null,null,null,null,0," ",null,null,""]
[93,null,null,null,null,null,0," ",null,null,""]
[94,null,null,null,null,null,0," ",null,null,""]
[95,null,null,null,null,null,0," ",null,null,""]
[96,null,null,null,null,null,0," ",null,null,""]
[97,null,null,null,null,null,0," ",null,null,""]
[98,null,null,null,null,null,0," ",null,null,""]
[99,null,null,null,null,null,0," ",null,null,""]
[100,null,null,null,null,null,0," ",null,null,""]
[101,null,null,null,null,null,0," ",null,null,""]
[102,null,null,null,null,null,0," ",null,null,""]
[103,null,null,null,null,null,0," ",null,null,""]
[104,null,null,null,null,null,0," ",null,null,""]
[105,null,null,null,null,null,0," ",null,null,""]
[106,null,null,null,null,null,0," ",null,null,""]
[107,null,null,null,null,null,0," ",null,null,""]
[108,null,null,null,null,null,0," ",null,null,""]
[109,null,null,null,null,null,0," ",null,null,""]
[110,null,null,null,null,null,0," ",null,null,""]
[111,null,null,null,null,null,0," ",null,null,""]
[112,null,null,null,null,null,0," ",null,null,""]
[113,null,null,null,null,null,0," ",null,null,""]
[114,null,null,null,null,null,0," ",null,null,""]
[115,null,null,null,null,null,0," ",null,null,""]
[116,null,null,null,null,null,0," ",null,null,""]
[117,null,null,null,null,null,0," ",null,null,""]
[118,null,null,null,null,null,0," ",null,null,""]
[119,null,null,null,null,null,0," ",null,null,""]
[120,null,null,null,null,null,0," ",null,null,""]
[121,null,null,null,null,null,0," ",null,null,""]
[122,null,null,null,null,null,0," ",null,null,""]
[123,null,null,null,null,null,0," ",null,null,""]
[124,null,null,null,null,null,0," ",null,null,""]
[125,null,null,null,null,null,0," ",null,null,""]
[126,null,null,null,null,null,0," ",null,null,""]
[127,null,null,null,null,null,0," ",null,null,""]
[128,null,null,null,null,null,0," ",null,null,""]
[129,null,null,null,null,null,0," ",null,null,""]
[130,null,null,null,null,null,{"$f":"(F137/$I$5)*100","v":0},{"$f":"IF(G137>=60,\"First\",IF(G137>=45,\"Second\",IF(G137>=33,\"Third\",\" \")))","v":" "},null,null,{"$f":"IF(H137=\"First\",\"pihlw\",IF(H137=\"Second\",\"dUjy\",IF(H137=\"Third\",\"qIjy\",\"\")))","v":""}]
[131,null,null,null,null,null,0," ",null,null,""]
[132,null,null,null,null,null,0," ",null,null,""]
[133,null,null,null,null,null,0," ",null,null,""]
[134,null,null,null,null,null,0," ",null,null,""]
[135,null,null,null,null,null,0," ",null,null,""]
[136,null,null,null,null,null,0," ",null,null,""]
[137,null,null,null,null,null,0," ",null,null,""]
[138,null,null,null,null,null,0," ",null,null,""]
[139,null,null,null,null,null,0," ",null,null,""]
[140,null,null,null,null,null,0," ",null,null,""]
[141,null,null,null,null,null,0," ",null,null,""]
[142,null,null,null,null,null,0," ",null,null,""]
[143,null,null,null,null,null,0," ",null,null,""]
[144,null,null,null,null,null,0," ",null,null,""]
[145,null,null,null,null,null,0," ",null,null,""]
[146,null,null,null,null,null,0," ",null,null,""]
[147,null,null,null,null,null,0," ",null,null,""]
[148,null,null,null,null,null,0," ",null,null,""]
[149,null,null,null,null,null,0," ",null,null,""]
[150,null,null,null,null,null,0," ",null,null,""]
[151,null,null,null,null,null,0," ",null,null,""]
[152,null,null,null,null,null,0," ",null,null,""]
[153,null,null,null,null,null,0," ",null,null,""]
[154,null,null,null,null,null,0," ",null,null,""]
[155,null,null,null,null,null,0," ",null,null,""]
[156,null,null,null,null,null,0," ",null,null,""]
[157,null,null,null,null,null,0," ",null,null,""]
[158,null,null,null,null,null,0," ",null,null,""]
[159,null,null,null,null,null,0," ",null,null,""]
[160,null,null,null,null,null,0," ",null,null,""]
[161,null,null,null,null,null,0," ",null,null,""]
[162,null,null,null,null,null,0," ",null,null,""]
[163,null,null,null,null,null,0," ",null,null,""]
[164,null,null,null,null,null,0," ",null,null,""]
[165,null,null,null,null,null,0," ",null,null,""]
[166,null,null,null,null,null,0," ",null,null,""]
[167,null,null,null,null,null,0," ",null,null,""]
[168,null,null,null,null,null,0," ",null,null,""]
[169,null,null,null,null,null,0," ",null,null,""]
[170,null,null,null,null,null,0," ",null,null,""]
[171,null,null,null,null,null,0," ",null,null,""]
[172,null,null,null,null,null,0," ",null,null,""]
[173,null,null,null,null,null,0," ",null,null,""]
[174,null,null,null,null,null,0," ",null,null,""]
[175,null,null,null,null,null,0," ",null,null,""]
[176,null,null,null,null,null,0," ",null,null,""]
[177,null,null,null,null,null,0," ",null,null,""]
[178,null,null,null,null,null,0," ",null,null,""]
[179,null,null,null,null,null,0," ",null,null,""]
[180,null,null,null,null,null,0," ",null,null,""]
[181,null,null,null,null,null,0," ",null,null,""]
[182,null,null,null,null,null,0," ",null,null,""]
[183,null,null,null,null,null,0," ",null,null,""]
[184,null,null,null,null,null,0," ",null,null,""]
[185,null,null,null,null,null,0," ",null,null,""]
[186,null,null,null,null,null,0," ",null,null,""]
[187,null,null,null,null,null,0," ",null,null,""]
[188,null,null,null,null,null,0," ",null,null,""]
[189,null,null,null,null,null,0," ",null,null,""]
[190,null,null,null,null,null,0," ",null,null,""]
[191,null,null,null,null,null,0," ",null,null,""]
[192,null,null,null,null,null,0," ",null,null,""]
[193,null,null,null,null,null,0," ",null,null,""]
[194,null,null,null,null,null,{"$f":"(F201/$I$5)*100","v":0},{"$f":"IF(G201>=60,\"First\",IF(G201>=45,\"Second\",IF(G201>=33,\"Third\",\" \")))","v":" "},null,null,{"$f":"IF(H201=\"First\",\"pihlw\",IF(H201=\"Second\",\"dUjy\",IF(H201=\"Third\",\"qIjy\",\"\")))","v":""}]
[195,null,null,null,null,null,0," ",null,null,""]
[196,null,null,null,null,null,0," ",null,null,""]
[197,null,null,null,null,null,0," ",null,null,""]
[198,null,null,null,null,null,0," ",null,null,""]
[199,null,null,null,null,null,0," ",null,null,""]
[200,null,null,null,null,null,0," ",null,null,""]
[201,null,null,null,null,null,0," ",null,null,""]
[202,null,null,null,null,null,0," ",null,null,""]
[203,null,null,null,null,null,0," ",null,null,""]
[204,null,null,null,null,null,0," ",null,null,""]
[205,null,null,null,null,null,0," ",null,null,""]
[206,null,null,null,null,null,0," ",null,null,""]
[207,null,null,null,null,null,0," ",null,null,""]
[208,null,null,null,null,null,0," ",null,null,""]
[209,null,null,null,null,null,0," ",null,null,""]
[210,null,null,null,null,null,0," ",null,null,""]
[211,null,null,null,null,null,0," ",null,null,""]
[212,null,null,null,null,null,0," ",null,null,""]
[213,null,null,null,null,null,0," ",null,null,""]
[214,null,null,null,null,null,0," ",null,null,""]
[215,null,null,null,null,null,0," ",null,null,""]
[216,null,null,null,null,null,0," ",null,null,""]
[217,null,null,null,null,null,0," ",null,null,""]
[218,null,null,null,null,null,0," ",null,null,""]
[219,null,null,null,null,null,0," ",null,null,""]
[220,null,null,null,null,null,0," ",null,null,""]
[221,null,null,null,null,null,0," ",null,null,""]
[222,null,null,null,null,null,0," ",null,null,""]
[223,null,null,null,null,null,0," ",null,null,""]
[224,null,null,null,null,null,0," ",null,null,""]
[225,null,null,null,null,null,0," ",null,null,""]
[226,null,null,null,null,null,0," ",null,null,""]
[227,null,null,null,null,null,0," ",null,null,""]
[228,null,null,null,null,null,0," ",null,null,""]
[229,null,null,null,null,null,0," ",null,null,""]
[230,null,null,null,null,null,0," ",null,null,""]
[231,null,null,null,null,null,0," ",null,null,""]
[232,null,null,null,null,null,0," ",null,null,""]
[233,null,null,null,null,null,0," ",null,null,""]
[234,null,null,null,null,null,0," ",null,null,""]
[235,null,null,null,null,null,0," ",null,null,""]
[236,null,null,null,null,null,0," ",null,null,""]
[237,null,null,null,null,null,0," ",null,null,""]
[238,null,null,null,null,null,0," ",null,null,""]
[239,null,null,null,null,null,0," ",null,null,""]
[240,null,null,null,null,null,0," ",null,null,""]
[241,null,null,null,null,null,0," ",null,null,""]
[242,null,null,null,null,null,0," ",null,null,""]
[243,null,null,null,null,null,0," ",null,null,""]
[244,null,null,null,null,null,0," ",null,null,""]
[245,null,null,null,null,null,0," ",null,null,""]
[246,null,null,null,null,null,0," ",null,null,""]
[247,null,null,null,null,null,0," ",null,null,""]
[248,null,null,null,null,null,0," ",null,null,""]
[249,null,null,null,null,null,0," ",null,null,""]
[250,null,null,null,null,null,0," ",null,null,""]
[251,null,null,null,null,null,0," ",null,null,""]
[252,null,null,null,null,null,0," ",null,null,""]
[253,null,null,null,null,null,0," ",null,null,""]
[254,null,null,null,null,null,0," ",null,null,""]
[255,null,null,null,null,null,0," ",null,null,""]
[256,null,null,null,null,null,0," ",null,null,""]
[257,null,null,null,null,null,0," ",null,null,""]
[258,null,null,null,null,null,{"$f":"(F265/$I$5)*100","v":0},{"$f":"IF(G265>=60,\"First\",IF(G265>=45,\"Second\",IF(G265>=33,\"Third\",\" \")))","v":" "},null,null,{"$f":"IF(H265=\"First\",\"pihlw\",IF(H265=\"Second\",\"dUjy\",IF(H265=\"Third\",\"qIjy\",\"\")))","v":""}]
[259,null,null,null,null,null,0," ",null,null,""]
[260,null,null,null,null,null,0," ",null,null,""]
[261,null,null,null,null,null,0," ",null,null,""]
[262,null,null,null,null,null,0," ",null,null,""]
[263,null,null,null,null,null,0," ",null,null,""]
[264,null,null,null,null,null,0," ",null,null,""]
[265,null,null,null,null,null,0," ",null,null,""]
[266,null,null,null,null,null,0," ",null,null,""]
[267,null,null,null,null,null,0," ",null,null,""]
[268,null,null,null,null,null,0," ",null,null,""]
[269,null,null,null,null,null,0," ",null,null,""]
[270,null,null,null,null,null,0," ",null,null,""]
[271,null,null,null,null,null,0," ",null,null,""]
[272,null,null,null,null,null,0," ",null,null,""]
[273,null,null,null,null,null,0," ",null,null,""]
[274,null,null,null,null,null,0," ",null,null,""]
[275,null,null,null,null,null,0," ",null,null,""]
[276,null,null,null,null,null,0," ",null,null,""]
[277,null,null,null,null,null,0," ",null,null,""]
[278,null,null,null,null,null,0," ",null,null,""]
[279,null,null,null,null,null,0," ",null,null,""]
[280,null,null,null,null,null,0," ",null,null,""]
[281,null,null,null,null,null,0," ",null,null,""]
[282,null,null,null,null,null,0," ",null,null,""]
[283,null,null,null,null,null,0," ",null,null,""]
[284,null,null,null,null,null,0," ",null,null,""]
[285,null,null,null,null,null,0," ",null,null,""]
[286,null,null,null,null,null,0," ",null,null,""]
[287,null,null,null,null,null,0," ",null,null,""]
[288,null,null,null,null,null,0," ",null,null,""]
[289,null,null,null,null,null,0," ",null,null,""]
[290,null,null,null,null,null,0," ",null,null,""]
[291,null,null,null,null,null,0," ",null,null,""]
[292,null,null,null,null,null,0," ",null,null,""]
[293,null,null,null,null,null,0," ",null,null,""]
[294,null,null,null,null,null,0," ",null,null,""]
[295,null,null,null,null,null,0," ",null,null,""]
[296,null,null,null,null,null,0," ",null,null,""]
[297,null,null,null,null,null,0," ",null,null,""]
[298,null,null,null,null,null,0," ",null,null,""]
[299,null,null,null,null,null,0," ",null,null,""]
[300,null,null,null,null,null,0," ",null,null,""]
[301,null,null,null,null,null,0," ",null,null,""]
[302,null,null,null,null,null,0," ",null,null,""]
[303,null,null,null,null,null,0," ",null,null,""]
[304,null,null,null,null,null,0," ",null,null,""]
[305,null,null,null,null,null,0," ",null,null,""]
[306,null,null,null,null,null,0," ",null,null,""]
[307,null,null,null,null,null,0," ",null,null,""]
[308,null,null,null,null,null,0," ",null,null,""]
[309,null,null,null,null,null,0," ",null,null,""]
[310,null,null,null,null,null,0," ",null,null,""]
[311,null,null,null,null,null,0," ",null,null,""]
[312,null,null,null,null,null,0," ",null,null,""]
[313,null,null,null,null,null,0," ",null,null,""]
[314,null,null,null,null,null,0," ",null,null,""]
[315,null,null,null,null,null,0," ",null,null,""]
[316,null,null,null,null,null,0," ",null,null,""]
[317,null,null,null,null,null,0," ",null,null,""]
[318,null,null,null,null,null,0," ",null,null,""]
[319,null,null,null,null,null,0," ",null,null,""]
[320,null,null,null,null,null,0," ",null,null,""]
[321,null,null,null,null,null,0," ",null,null,""]
[322,null,null,null,null,null,{"$f":"(F329/$I$5)*100","v":0},{"$f":"IF(G329>=60,\"First\",IF(G329>=45,\"Second\",IF(G329>=33,\"Third\",\" \")))","v":" "},null,null,{"$f":"IF(H329=\"First\",\"pihlw\",IF(H329=\"Second\",\"dUjy\",IF(H329=\"Third\",\"qIjy\",\"\")))","v":""}]
[323,null,null,null,null,null,0," ",null,null,""]
[324,null,null,null,null,null,0," ",null,null,""]
[325,null,null,null,null,null,0," ",null,null,""]
[326,null,null,null,null,null,0," ",null,null,""]
[327,null,null,null,null,null,0," ",null,null,""]
[328,null,null,null,null,null,0," ",null,null,""]
[329,null,null,null,null,null,0," ",null,null,""]
[330,null,null,null,null,null,0," ",null,null,""]
[331,null,null,null,null,null,0," ",null,null,""]
[332,null,null,null,null,null,0," ",null,null,""]
[333,null,null,null,null,null,0," ",null,null,""]
[334,null,null,null,null,null,0," ",null,null,""]
[335,null,null,null,null,null,0," ",null,null,""]
[336,null,null,null,null,null,0," ",null,null,""]
[337,null,null,null,null,null,0," ",null,null,""]
[338,null,null,null,null,null,0," ",null,null,""]
[339,null,null,null,null,null,0," ",null,null,""]
[340,null,null,null,null,null,0," ",null,null,""]
[341,null,null,null,null,null,0," ",null,null,""]
[342,null,null,null,null,null,0," ",null,null,""]
[343,null,null,null,null,null,0," ",null,null,""]
[344,null,null,null,null,null,0," ",null,null,""]
[345,null,null,null,null,null,0," ",null,null,""]
[346,null,null,null,null,null,0," ",null,null,""]
[347,null,null,null,null,null,0," ",null,null,""]
[348,null,null,null,null,null,0," ",null,null,""]
[349,null,null,null,null,null,0," ",null,null,""]
[350,null,null,null,null,null,0," ",null,null,""]
[351,null,null,null,null,null,0," ",null,null,""]
[352,null,null,null,null,null,0," ",null,null,""]
[353,null,null,null,null,null,0," ",null,null,""]
[354,null,null,null,null,null,0," ",null,null,""]
[355,null,null,null,null,null,0," ",null,null,""]
[356,null,null,null,null,null,0," ",null,null,""]
[357,null,null,null,null,null,0," ",null,null,""]
[358,null,null,null,null,null,0," ",null,null,""]
[359,null,null,null,null,null,0," ",null,null,""]
[360,null,null,null,null,null,0," ",null,null,""]
[361,null,null,null,null,null,0," ",null,null,""]
[362,null,null,null,null,null,0," ",null,null,""]
[363,null,null,null,null,null,0," ",null,null,""]
[364,null,null,null,null,null,0," ",null,null,""]
[365,null,null,null,null,null,0," ",null,null,""]
[366,null,null,null,null,null,0," ",null,null,""]
[367,null,null,null,null,null,0," ",null,null,""]
[368,null,null,null,null,null,0," ",null,null,""]
[369,null,null,null,null,null,0," ",null,null,""]
[370,null,null,null,null,null,0," ",null,null,""]
[371,null,null,null,null,null,0," ",null,null,""]
[372,null,null,null,null,null,0," ",null,null,""]
[373,null,null,null,null,null,0," ",null,null,""]
[374,null,null,null,null,null,0," ",null,null,""]
[375,null,null,null,null,null,0," ",null,null,""]
[376,null,null,null,null,null,0," ",null,null,""]
[377,null,null,null,null,null,0," ",null,null,""]
[378,null,null,null,null,null,0," ",null,null,""]
[379,null,null,null,null,null,0," ",null,null,""]
[380,null,null,null,null,null,0," ",null,null,""]
[381,null,null,null,null,null,0," ",null,null,""]
[382,null,null,null,null,null,0," ",null,null,""]
[383,null,null,null,null,null,0," ",null,null,""]
[384,null,null,null,null,null,0," ",null,null,""]
[385,null,null,null,null,null,0," ",null,null,""]
[386,null,null,null,null,null,{"$f":"(F393/$I$5)*100","v":0},{"$f":"IF(G393>=60,\"First\",IF(G393>=45,\"Second\",IF(G393>=33,\"Third\",\" \")))","v":" "},null,null,{"$f":"IF(H393=\"First\",\"pihlw\",IF(H393=\"Second\",\"dUjy\",IF(H393=\"Third\",\"qIjy\",\"\")))","v":""}]
[387,null,null,null,null,null,0," ",null,null,""]
[388,null,null,null,null,null,0," ",null,null,""]
[389,null,null,null,null,null,0," ",null,null,""]
[390,null,null,null,null,null,0," ",null,null,""]
[391,null,null,null,null,null,0," ",null,null,""]
[392,null,null,null,null,null,0," ",null,null,""]
[393,null,null,null,null,null,0," ",null,null,""]
[394,null,null,null,null,null,0," ",null,null,""]
[395,null,null,null,null,null,0," ",null,null,""]
[396,null,null,null,null,null,0," ",null,null,""]
[397,null,null,null,null,null,0," ",null,null,""]
[398,null,null,null,null,null,0," ",null,null,""]
[399,null,null,null,null,null,0," ",null,null,""]
[400,null,null,null,null,null,0," ",null,null,""]
[401,null,null,null,null,null,0," ",null,null,""]
[402,null,null,null,null,null,0," ",null,null,""]
[403,null,null,null,null,null,0," ",null,null,""]
[404,null,null,null,null,null,0," ",null,null,""]
[405,null,null,null,null,null,0," ",null,null,""]
[406,null,null,null,null,null,0," ",null,null,""]
[407,null,null,null,null,null,0," ",null,null,""]
[408,null,null,null,null,null,0," ",null,null,""]
[409,null,null,null,null,null,0," ",null,null,""]
[410,null,null,null,null,null,0," ",null,null,""]
[411,null,null,null,null,null,0," ",null,null,""]
[412,null,null,null,null,null,0," ",null,null,""]
[413,null,null,null,null,null,0," ",null,null,""]
[414,null,null,null,null,null,0," ",null,null,""]
[415,null,null,null,null,null,0," ",null,null,""]
[416,null,null,null,null,null,0," ",null,null,""]
[417,null,null,null,null,null,0," ",null,null,""]
[418,null,null,null,null,null,0," ",null,null,""]
[419,null,null,null,null,null,0," ",null,null,""]
[420,null,null,null,null,null,0," ",null,null,""]
[421,null,null,null,null,null,0," ",null,null,""]
[422,null,null,null,null,null,0," ",null,null,""]
[423,null,null,null,null,null,0," ",null,null,""]
[424,null,null,null,null,null,0," ",null,null,""]
[425,null,null,null,null,null,0," ",null,null,""]
[426,null,null,null,null,null,0," ",null,null,""]
[427,null,null,null,null,null,0," ",null,null,""]
[428,null,null,null,null,null,0," ",null,null,""]
[429,null,null,null,null,null,0," ",null,null,""]
[430,null,null,null,null,null,0," ",null,null,""]
[431,null,null,null,null,null,0," ",null,null,""]
[432,null,null,null,null,null,0," ",null,null,""]
[433,null,null,null,null,null,0," ",null,null,""]
[434,null,null,null,null,null,0," ",null,null,""]
[435,null,null,null,null,null,0," ",null,null,""]
[436,null,null,null,null,null,0," ",null,null,""]
[437,null,null,null,null,null,0," ",null,null,""]
[438,null,null,null,null,null,0," ",null,null,""]
[439,null,null,null,null,null,0," ",null,null,""]
[440,null,null,null,null,null,0," ",null,null,""]
[441,null,null,null,null,null,0," ",null,null,""]
[442,null,null,null,null,null,0," ",null,null,""]
[443,null,null,null,null,null,0," ",null,null,""]
[444,null,null,null,null,null,0," ",null,null,""]
[445,null,null,null,null,null,0," ",null,null,""]
[446,null,null,null,null,null,0," ",null,null,""]
[447,null,null,null,null,null,0," ",null,null,""]
[448,null,null,null,null,null,0," ",null,null,""]
[449,null,null,null,null,null,0," ",null,null,""]
[450,null,null,null,null,null,{"$f":"(F457/$I$5)*100","v":0},{"$f":"IF(G457>=60,\"First\",IF(G457>=45,\"Second\",IF(G457>=33,\"Third\",\" \")))","v":" "},null,null,{"$f":"IF(H457=\"First\",\"pihlw\",IF(H457=\"Second\",\"dUjy\",IF(H457=\"Third\",\"qIjy\",\"\")))","v":""}]
[451,null,null,null,null,null,0," ",null,null,""]
[452,null,null,null,null,null,0," ",null,null,""]
[453,null,null,null,null,null,0," ",null,null,""]
[454,null,null,null,null,null,0," ",null,null,""]
[455,null,null,null,null,null,0," ",null,null,""]
[456,null,null,null,null,null,0," ",null,null,""]
[457,null,null,null,null,null,0," ",null,null,""]
[458,null,null,null,null,null,0," ",null,null,""]
[459,null,null,null,null,null,0," ",null,null,""]

{"sheet":"Print Certificates","index":2,"n_rows":41,"n_cols":14,"rows_kept":41,"cut":false,"hidden":false,"merged":[[0,10,43,10],[43,3,43,9],[24,3,24,4],[8,3,8,7],[39,6,39,7],[40,6,40,7],[3,3,3,8],[4,3,4,8],[28,5,28,8],[26,7,26,8],[30,7,30,8],[22,4,22,8],[24,5,24,8],[0,1,43,1],[42,2,43,2],[34,3,34,7],[6,4,6,6],[0,2,0,9],[12,4,12,7],[10,5,10,7],[18,6,18,7],[39,4,39,5]]}
[]
[]
[]
[null,null,null,{"$f":"'Entry Sheeet'!C4&\" blwk \"&'Entry Sheeet'!I4&\" ijlHw \"&'Entry Sheeet'!K4","v":"srkwrI hweI skUl KMnw blwk KMnw-2 ijlHw luiDAwxw"},null,null,null,null,null,null,null,null,"Total Number of Record",{"$f":"COUNTA('Entry Sheeet'!B8:B614)","v":5}]
[null,null,null,{"$f":"'Entry Sheeet'!C3&\" Block \"&'Entry Sheeet'!I3&\" Distt. \"&'Entry Sheeet'!K3","v":"Govt. High School Khanna Block Khanna-2 Distt. Ludhiana"}]
[null,null,null,null,null,null,null,null,null,null,null,null,"Record Number:",4]
[null,null,null,null,"Awcrx srtIiPkyt\n(Character Certificate)"]
[]
[null,null,null,{"$f":"\"Session \"&'Entry Sheeet'!E5-1&\"--\"&'Entry Sheeet'!E5","v":"Session 2022--2023"}]
[]
[null,null,null,"pRmwixq kIqw ","jWdw hY ik ",{"$f":"\"      \"&IFERROR(VLOOKUP($N$6,'Entry Sheeet'!$A$7:$BB$478,9,0),\"\")","v":"      rwm 4"}]
[]
[null,null,null,"p`uqr/pu`qrI SRI  ",{"$f":"\"  \"&IFERROR(VLOOKUP($N$6,'Entry Sheeet'!$A$7:$BB$478,10,0),\"\")","v":"  swm isMG 4"}]
[]
[null,null,null,"ies skUl iv`c          ",{"$f":"IFERROR(VLOOKUP($N$6,'Entry Sheeet'!$A$7:$BB$478,5,0),\"\") & \" swlW \"","v":"4 swlW "},"qoN ividAwrQI hY[aus ny",{"$f":"'Entry Sheeet'!J5","v":"dsvIN"},"jmwq dI pMjwb ","skUl"]
[]
[null,null,null,"is`iKAw borf dy                ","iemiqhwn",{"$f":"\"mwrc \"&'Entry Sheeet'!E5","v":"mwrc 2023"},"iv`c rol nM:",{"$f":"IFERROR(VLOOKUP($N$6,'Entry Sheeet'!$A$7:$BB$478,4,0),\"\")","v":102015105},"ADIn"]
[]
[null,null,null,{"$f":"IFERROR(VLOOKUP($N$6,'Entry Sheeet'!$A$7:$BB$478,6,0),\"\") &\"/\"&'Entry Sheeet'!$I$5&\" AMk\"","v":"250/650 AMk"},"pRwpq krky",{"$f":"IFERROR(VLOOKUP($N$6,'Entry Sheeet'!$A$7:$BB$478,11,0),\"\")","v":"qIjy"},"drjy iv`c pws kIqI["]
[]
[]
[]
[null,null,null,"Certified   that ",{"$f":"\"      \"&IFERROR(VLOOKUP($N$6,'Entry Sheeet'!$A$7:$BB$478,2,0),\"\")","v":"      Ram 4"}]
[]
[null,null,null,"Son/Daughter   of    Shri",null,{"$f":"\"      \"&IFERROR(VLOOKUP($N$6,'Entry Sheeet'!$A$7:$BB$478,3,0),\"\")","v":"      Sham Singh 4"}]
[]
[null,null,null,"has    been    a   Student  of   this   School    for  ",null,null,{"$f":"IFERROR(VLOOKUP($N$6,'Entry Sheeet'!$A$7:$BB$478,5,0),\"\")","v":4},"years.  He / she"]
[]
[null,null,null,"has    passed ",{"$f":"'Entry Sheeet'!C5","v":"Matric"},"   Examination   of     Punjab   School    Education"]
[]
[null,null,null,"Board  from  the school in",null,{"$f":"\"March \"&'Entry Sheeet'!E5","v":"March 2023"},"under roll no.    ",{"$f":"IFERROR(VLOOKUP($N$6,'Entry Sheeet'!$A$7:$BB$478,4,0),\"\")","v":102015105}]
[]
[null,null,null,"and  Secured ",{"$f":"IFERROR(VLOOKUP($N$6,'Entry Sheeet'!$A$7:$BB$478,6,0),\"\") &\"/\"&'Entry Sheeet'!$I$5","v":"250/650"},"__   Marks     in ",{"$f":"IFERROR(VLOOKUP($N$6,'Entry Sheeet'!$A$7:$BB$478,8,0),\"\")","v":"Third"},"Division."]
[]
[null,null,null,"He/She bears a good moral character."]
[]
[]
[]
[null,null,null,"Class In-charge /Teacher",null,null,"Principal/Headmaster"]
[null,null,null,"Date of Issue  : ",{"$f":"TODAY()","v":"2025-05-20"},null,{"$f":"'Entry Sheeet'!C3","v":"Govt. High School Khanna"}]
[null,null,null,null,null,null,{"$f":"'Entry Sheeet'!I3 &\" ( \"&'Entry Sheeet'!K3&\" )\"","v":"Khanna-2 ( Ludhiana )"}]